fUSD/lending_fUSD_20260403
["ID","MTS","AMOUNT","RATE_DAILY","PERIOD"]
[419327973,1775179843996,-643.04709195,0.00015999,2]
[419327974,1775179844006,-643.04709195,0.00015999,2]
[419327975,1775179844017,-643.04709195,0.00015999,2]
[419327976,1775179844026,-643.04709195,0.00015999,2]
[419327977,1775179844036,-643.04709195,0.00015999,2]
[419327978,1775179844045,-643.04709195,0.00015999,2]
[419327979,1775179844055,-643.04709195,0.00015999,2]
[419327980,1775179844065,-643.04709195,0.00015999,2]
[419327981,1775179844074,-643.04709195,0.00015999,2]
[419327982,1775179844084,-643.04709195,0.00015999,2]
[419327983,1775179844093,-643.04709195,0.00015999,2]
[419327984,1775179844103,-643.04709195,0.00015999,2]
[419327985,1775179844112,-49.2685128,0.00015999,2]
[419327986,1775179844127,-579.0803599,0.00015999,2]
[419327987,1775179844137,-628.3488727,0.00015999,2]
[419327988,1775179844146,-628.3488727,0.00015999,2]
[419327989,1775179844157,-628.3488727,0.00015999,2]
[419327990,1775179844167,-628.3488727,0.00015999,2]
[419327991,1775179844176,-628.3488727,0.00015999,2]
[419327992,1775179844186,-628.3488727,0.00015999,2]
[419327993,1775179844197,-628.3488727,0.00015999,2]
[419327994,1775179844207,-628.3488727,0.00015999,2]
[419327995,1775179844216,-628.3488727,0.00015999,2]
[419327996,1775179844226,-46.87678966,0.00015999,2]
[419327997,1775179844240,-581.47208304,0.00015999,2]
[419327998,1775179844250,-245.12498577,0.00015999,2]
[419328000,1775179845994,-232.03942317,0.0001589,2]
[419328001,1775179846005,-83.48753841,0.00015999,2]
[419328002,1775179846017,-140.39797091,0.00015999,2]
[419328003,1775179846027,-383.22388693,0.00015999,2]
[419328004,1775179846036,-628.3488727,0.00015999,2]
[419328005,1775179846046,-628.3488727,0.00015999,2]
[419328006,1775179846055,-628.3488727,0.00015999,2]
[419328007,1775179846068,-45.49876328,0.00015999,2]
[419328008,1775179846214,-355.56153099,0.00015999,2]
[419328030,1775181031703,-504.0,0.00013111,2]
[419328031,1775181031714,-144.12706222,0.00013111,2]
[419328032,1775181031727,-45.0902586,0.00013111,2]
[419328033,1775181031736,-167.96294651,0.00013455,2]
[419328034,1775181031746,-243.91365574,0.000135,2]
[419328035,1775181031759,-300.0,0.00013554,2]
[419328036,1775181031769,-1200.0,0.00013554,2]
[419328037,1775181031779,-78417.0862,0.00013555,2]
[419328038,1775181031788,-189.21732082,0.00013555,2]
[419328039,1775181031797,-189.21732082,0.00013555,2]
[419328040,1775181031807,-25062.52886341,0.00013556,2]
[419328041,1775181031875,-321.0,0.00013556,2]
[419328082,1775181037737,-2917.5460326,0.00013556,2]
[419328090,1775181037843,-6647.05600399,0.00013556,2]
[419328092,1775181037853,-154.67476375,0.00013556,2]
[419328094,1775181037862,-976.57027811,0.00013556,2]
[419328095,1775181037871,-200.0,0.00013648,2]
[419328096,1775181037881,-500.0,0.00013648,2]
[419328097,1775181037890,-500.0,0.00013648,2]
[419328098,1775181037899,-500.0,0.00013648,2]
[419328099,1775181037908,-380.79940959,0.00013648,2]
[419328100,1775181037955,-119.20059041,0.00013648,2]
[419328101,1775181037964,-433.73053975,0.00013648,2]
[419328102,1775181038012,-87.70865754,0.00013648,2]
[419328103,1775181038022,-151.0,0.00013648,2]
[419328104,1775181038031,-151.0,0.00013648,2]
[419328105,1775181038040,-151.0,0.00013648,2]
[419328106,1775181038049,-151.0,0.00013648,2]
[419328107,1775181038059,-500.0,0.00013648,2]
[419328108,1775181038067,-162.44561248,0.00013648,2]
[419328109,1775181038076,-500.0,0.00013648,2]
[419328110,1775181038085,-500.0,0.00013648,2]
[419328111,1775181038095,-500.0,0.00013648,2]
[419328112,1775181038105,-521.12748579,0.00013648,2]
[419328113,1775181038114,-151.8762671,0.00013648,2]
[419328114,1775181038124,-166.66,0.00013699,2]
[419328115,1775181038133,-154.67476372,0.00013849,2]
[419328116,1775181038142,-166.66,0.00013911,2]
[419328117,1775181038151,-2478.47,0.00013921,2]
[419328118,1775181038159,-189.94,0.00013927,2]
[419328119,1775181038170,-166.66,0.00014123,2]
[419328120,1775181038180,-154.67476372,0.00014142,2]
[419328121,1775181038190,-168.19,0.00014174,2]
[419328122,1775181038199,-150.0,0.00014179,2]
[419328123,1775181038208,-201.97214981,0.00014196,2]
[419328124,1775181038217,-353.09,0.00014208,2]
[419328126,1775181038226,-1529.84,0.00014325,2]
[419328128,1775181038235,-153.34252873,0.00014328,2]
[419328130,1775181038244,-166.66,0.00014335,2]
[419328132,1775181038253,-1847.07,0.00014397,2]
[419328134,1775181038262,-150.0,0.000144,2]
[419328136,1775181038272,-302.63150284,0.00014422,2]
[419328138,1775181038281,-195.0,0.00014422,2]
[419328140,1775181038290,-154.67476372,0.00014435,2]
[419328142,1775181038300,-166.66,0.00014478,2]
[419328144,1775181038309,-166.66,0.00014547,2]
[419328146,1775181038318,-154.67476372,0.00014728,2]
[419328148,1775181038327,-166.66,0.00014759,2]
[419328150,1775181038336,-420.0,0.00014856,2]
[419328152,1775181038345,-1680.0,0.00014909,2]
[419328153,1775181038354,-455.65104263,0.00014955,2]
[419328155,1775181038363,-154.67476372,0.00015021,2]
[419328157,1775181038372,-267.6,0.00015185,2]
[419328159,1775181038381,-168.19,0.00015187,2]
[419328161,1775181038390,-161.636538,0.000152,2]
[419328163,1775181038399,-154.67476372,0.00015314,2]
[419328166,1775181038410,-189.94,0.00015319,2]
[419328168,1775181038420,-180.4118,0.000156,7]
[419328170,1775181038429,-154.67476372,0.00015607,2]
[419328172,1775181038438,-166.66,0.00015673,2]
[419328174,1775181038447,-171.85,0.000158,2]
[419328176,1775181038457,-1346.0,0.00015805,2]
[419328178,1775181038467,-622.0,0.00015805,2]
[419328179,1775181038476,-3521.0,0.00015805,2]
[419328181,1775181038486,-1046.0,0.00015805,2]
[419328184,1775181038497,-1263.0,0.00015805,2]
[419328186,1775181038506,-1220.817,0.00015805,2]
[419328188,1775181038515,-925.0,0.00015805,2]
[419328189,1775181038524,-2470.0,0.00015805,2]
[419328191,1775181038533,-502.492,0.00015805,2]
[419328193,1775181038542,-152.0,0.0001586,5]
[419328195,1775181038551,-156.0,0.0001586,5]
[419328197,1775181038560,-628.7050582,0.000159,2]
[419328199,1775181038569,-154.67476372,0.000159,2]
[419328201,1775181038578,-207.92254637,0.000159,2]
[419328203,1775181038587,-171.75458922,0.000159,2]
[419328205,1775181038596,-3333.57,0.0001599,2]
[419328207,1775181038606,-3333.57,0.0001599,2]
[419328209,1775181038615,-3333.57,0.0001599,2]
[419328211,1775181038624,-3333.57,0.0001599,2]
[419328212,1775181038633,-3333.57,0.0001599,2]
[419328213,1775181038643,-22007.91496231,0.00015998,2]
[419328214,1775181038679,-811.515943,0.00015998,2]
[419328244,1775181039024,-566.99564735,0.00015998,2]
[419328247,1775181039035,-1829.4514434,0.00015998,2]
[419328249,1775181039046,-1601.27028525,0.00015998,2]
[419328251,1775181039057,-1778.41020357,0.00015998,2]
[419328253,1775181039068,-4992.61308658,0.00015998,2]
[419328424,1775181040688,-591.07158026,0.00015998,2]
[419328426,1775181040699,-644.38,0.00015998,2]
[419328427,1775181040742,-2358.73356464,0.00015998,2]
[419328428,1775181040754,-803.59950654,0.00015998,2]
[419328429,1775181040763,-3667.0599911,0.00015998,2]
[419328430,1775181040773,-2874.0776911,0.00015998,2]
[419328431,1775181040782,-837.1176309,0.00015998,2]
[419328433,1775181040792,-291.0,0.00015999,3]
[419328435,1775181040801,-152.0,0.00015999,3]
[419328437,1775181040811,-274.48809837,0.00015999,2]
[419328439,1775181040820,-155.425,0.00015999,2]
[419328441,1775181040829,-500.0,0.00015999,2]
[419328443,1775181040838,-522.80688084,0.00015999,2]
[419328445,1775181040848,-286.45696295,0.00015999,2]
[419328447,1775181040857,-500.0,0.00015999,2]
[419328449,1775181040866,-500.0,0.00015999,2]
[419328451,1775181040875,-500.0,0.00015999,2]
[419328453,1775181040884,-500.0,0.00015999,2]
[419328455,1775181040893,-500.0,0.00015999,2]
[419328457,1775181040902,-500.0,0.00015999,2]
[419328459,1775181040911,-500.0,0.00015999,2]
[419328461,1775181040920,-500.0,0.00015999,2]
[419328463,1775181040929,-500.0,0.00015999,2]
[419328465,1775181040939,-500.0,0.00015999,2]
[419328467,1775181040948,-500.0,0.00015999,2]
[419328469,1775181040957,-500.0,0.00015999,2]
[419328471,1775181040966,-500.0,0.00015999,2]
[419328473,1775181040975,-500.0,0.00015999,2]
[419328475,1775181040985,-500.0,0.00015999,2]
[419328477,1775181040994,-500.0,0.00015999,2]
[419328479,1775181041003,-500.0,0.00015999,2]
[419328481,1775181041012,-500.0,0.00015999,2]
[419328483,1775181041021,-500.0,0.00015999,2]
[419328485,1775181041030,-500.0,0.00015999,2]
[419328487,1775181041039,-500.0,0.00015999,2]
[419328489,1775181041048,-500.0,0.00015999,2]
[419328491,1775181041057,-500.0,0.00015999,2]
[419328492,1775181041067,-391.96895164,0.00015999,2]
[419328494,1775181041077,-500.0,0.00015999,2]
[419328495,1775181041086,-500.0,0.00015999,2]
[419328496,1775181041095,-500.0,0.00015999,2]
[419328497,1775181041104,-500.0,0.00015999,2]
[419328498,1775181041113,-500.0,0.00015999,2]
[419328499,1775181041122,-500.0,0.00015999,2]
[419328500,1775181041132,-500.0,0.00015999,2]
[419328501,1775181041141,-600.0,0.00015999,2]
[419328502,1775181041150,-142701.01564594,0.00016,2]
[419328503,1775181041169,-1665.45745938,0.00016,2]
[419328505,1775181041180,-562.66995389,0.00016,2]
[419328515,1775181042912,-1339.2538261,0.00015805,2]
[419328516,1775181042923,-330.5191739,0.00015805,2]
[419328517,1775181042933,-318.40126032,0.00016,2]
[419328518,1775181043134,-661.24,0.00016,2]
[419328519,1775181043146,-666.2582743,0.00016,2]
[419328520,1775181043158,-1609.26664892,0.00016,2]
[419328523,1775181045709,-975.96024543,0.0001568,2]
[419328524,1775181045719,-4045.07357693,0.00016,2]
[419328525,1775181045763,-10521.50036339,0.00016,2]
[419328574,1775181046974,-20794.72837873,0.00016,2]
[419328581,1775181047030,-650.01129907,0.00016,2]
[419328760,1775182233336,-530.57794545,9.5e-05,3]
[419328773,1775182233500,-1015.16,9.5e-05,3]
[419328774,1775182233512,-3282.07846847,9.5e-05,3]
[419328775,1775182233530,-689.16136204,9.5e-05,3]
[419328782,1775182233636,-255.75980045,9.5e-05,3]
[419328796,1775182238145,-51931.18539875,9.5e-05,3]
[419328797,1775182238154,-504.0,0.00013111,2]
[419328798,1775182238163,-531.148,0.00013284,2]
[419328799,1775182238172,-351.0,0.00013284,2]
[419328800,1775182238182,-1200.0,0.00013453,2]
[419328801,1775182238191,-5772.04103496,0.00013454,2]
[419328802,1775182238200,-300.0,0.00013454,2]
[419328803,1775182238210,-300.0,0.00013454,2]
[419328804,1775182238219,-6647.056,0.00013455,2]
[419328805,1775182238228,-963.22529421,0.00013473,2]
[419328806,1775182238237,-335.08979385,0.00013547,2]
[419328807,1775182238371,-164.91020615,0.00013547,2]
[419328808,1775182238381,-500.0,0.00013547,2]
[419328809,1775182238390,-500.0,0.00013547,2]
[419328810,1775182238399,-380.79940959,0.00013547,2]
[419328811,1775182238410,-200.0,0.00013547,2]
[419328812,1775182238420,-963.22529418,0.00013743,2]
[419328813,1775182238430,-391.48339381,0.00014012,2]
[419328814,1775182238441,-571.74190037,0.00014012,2]
[419328815,1775182238451,-1600.0,0.00014133,2]
[419328816,1775182238460,-2160.95305811,0.00014144,2]
[419328818,1775182238482,-1282.25436976,0.00014144,2]
[419328819,1775182238493,-1609.77303333,0.00014144,2]
[419328849,1775182240852,-7611.7095388,0.00014144,2]
[419328850,1775182240862,-963.22529418,0.00014282,2]
[419328851,1775182240873,-200.0,0.000143,2]
[419328852,1775182240883,-200.0,0.00014329,2]
[419328853,1775182240893,-150.0,0.000144,2]
[419328854,1775182240905,-152.51587459,0.000144,2]
[419328855,1775182240915,-153.17679523,0.000144,2]
[419328856,1775182240925,-154.20526906,0.000144,2]
[419328857,1775182240936,-153.23279417,0.000144,2]
[419328858,1775182240946,-153.27019078,0.000144,2]
[419328859,1775182240957,-197.01868386,0.00014422,2]
[419328860,1775182240968,-252.53960914,0.00014422,2]
[419328861,1775182240979,-321.4894086,0.00014422,2]
[419328862,1775182240990,-846.1280168,0.00014422,2]
[419328863,1775182241000,-963.22529418,0.00014552,2]
[419328864,1775182241011,-420.0,0.00014748,2]
[419328865,1775182241021,-1680.0,0.00014798,2]
[419328866,1775182241032,-963.22529418,0.00014821,2]
[419328867,1775182241043,-1852.42,0.00015013,2]
[419328868,1775182241053,-963.22529418,0.00015091,2]
[419328869,1775182241064,-963.22529418,0.00015361,2]
[419328870,1775182241076,-196.24,0.00015389,2]
[419328871,1775182241087,-768.17957169,0.000155,3]
[419328872,1775182241097,-239.14,0.00015507,2]
[419328873,1775182241110,-150.0,0.00015531,2]
[419328874,1775182241120,-150.0,0.00015531,2]
[419328875,1775182241130,-150.0,0.00015531,2]
[419328876,1775182241141,-216.19443643,0.00015531,2]
[419328877,1775182241151,-180.3587,0.000156,7]
[419328878,1775182241164,-963.22529418,0.0001563,2]
[419328879,1775182241175,-466.6393005,0.00015801,2]
[419328880,1775182241186,-150.0,0.00015805,2]
[419328881,1775182241197,-1346.0,0.00015805,2]
[419328882,1775182241210,-3521.0,0.00015805,2]
[419328883,1775182241223,-1046.0,0.00015805,2]
[419328884,1775182241234,-987.38,0.00015805,2]
[419328885,1775182241245,-1217.0,0.00015805,2]
[419328886,1775182241256,-831.548749,0.00015805,2]
[419328892,1775182246711,-5547.40013359,0.00015431,2]
[419328893,1775182246759,-324.54039602,0.00015431,2]
[419328896,1775182246857,-15268.2442,0.00015431,2]
[419328897,1775182247065,-8396.12709132,0.00015431,2]
[419328898,1775182247078,-20617.58299161,0.00015431,2]
[419328899,1775182247116,-13401.65582663,0.00015431,2]
[419328910,1775182249174,-453.0,0.00015431,2]
[419328911,1775182249443,-448135.6413442,0.00015431,2]
[419328912,1775182249499,-428.58748722,0.00015431,2]
[419328913,1775182249511,-25600.89245952,0.00015431,2]
[419328915,1775183190834,-509.78900732,0.00012018,2]
[419328916,1775183190856,-369.2007927,0.00012018,2]
[419328917,1775183190878,-328.0,0.00012018,2]
[419328918,1775183190900,-1762.01019998,0.0001203,2]
[419328920,1775183291170,-328.0,0.0001203,2]
[419328921,1775183291198,-670.0,0.0001203,2]
[419328923,1775183432316,-10.16980002,0.0001203,2]
[419328924,1775183432326,-504.0,0.00013111,2]
[419328925,1775183432336,-108.07391637,0.00013923,2]
[419328926,1775183432347,-738.13078363,0.00013923,2]
[419328927,1775183432357,-79.66510229,0.00013932,2]
[419328928,1775183432384,-1120.33489771,0.00013932,2]
[419328929,1775183432394,-2280.87894104,0.00013933,2]
[419328930,1775183432405,-278.617552,0.00013933,2]
[419328931,1775183432546,-3102.12593569,0.00013933,2]
[419328932,1775183432558,-19939.26997127,0.00013933,2]
[419328933,1775183432568,-38304.62890392,0.00014023,2]
[419328934,1775183432652,-1120.8077338,0.00014023,2]
[419328935,1775183432663,-1073.24734261,0.00014023,2]
[419328937,1775183432787,-924.05253866,0.00014023,2]
[419328939,1775183432799,-5925.49764043,0.00014023,2]
[419328940,1775183432809,-424.918,0.00014032,2]
[419328941,1775183432818,-500.0,0.00014073,2]
[419328942,1775183432828,-502.03091492,0.00014073,2]
[419328943,1775183432838,-381.05064612,0.00014073,2]
[419328944,1775183432848,-503.68307427,0.00014073,2]
[419328945,1775183432857,-503.96582191,0.00014073,2]
[419328946,1775183432866,-347.87294327,0.00014073,2]
[419328947,1775183432875,-500.40230282,0.00014073,2]
[419328948,1775183432885,-502.17356162,0.00014073,2]
[419328949,1775183432894,-500.79217091,0.00014073,2]
[419328950,1775183432905,-501.4077327,0.00014073,2]
[419328951,1775183432914,-502.27057461,0.00014073,2]
[419328952,1775183432924,-150.0,0.000141,2]
[419328953,1775183432934,-2000.0,0.00014133,2]
[419328954,1775183432944,-674.29,0.0001423,2]
[419328955,1775183432954,-858.74,0.00014323,2]
[419328956,1775183432963,-168.2,0.00014338,2]
[419328957,1775183432973,-1209.8512209,0.000144,2]
[419328958,1775183432985,-625.6194234,0.000144,2]
[419328959,1775183432997,-974.5293557,0.000144,2]
[419328960,1775183433009,-168.11362208,0.00014441,2]
[419328961,1775183433045,-2010.29597792,0.00014441,2]
[419328962,1775183433055,-176.54,0.00014482,2]
[419328963,1775183433064,-8113.46042097,0.00014541,2]
[419328964,1775183439591,-998.6837,0.00013933,2]
[419328965,1775183439602,-262.52839283,0.00014541,2]
[419328966,1775183441435,-1152.63151718,0.00014541,2]
[419328968,1775183441717,-7487.84382139,0.00014541,2]
[419328969,1775183441740,-4068.68133863,0.00014541,2]
[419328974,1775183443482,-271.96277641,0.00014541,2]
[419328975,1775183443793,-38116.65173259,0.00014541,2]
[419328976,1775183443805,-168.19,0.00014571,2]
[419328977,1775183443824,-500.99644893,0.00014621,2]
[419328978,1775183443840,-180.3346,0.000153,7]
[419328979,1775183443852,-1680.0,0.00015325,2]
[419328980,1775183443863,-997.85949871,0.00015331,2]
[419328981,1775183443873,-997.85949862,0.00015394,2]
[419328982,1775183443884,-1000.8038495,0.000154,2]
[419328983,1775183443894,-8144.301658,0.000154,2]
[419328984,1775183443907,-180.9238693,0.00015408,2]
[419328985,1775183443918,-152.0,0.00015431,3]
[419328986,1775183443932,-286.0,0.00015431,3]
[419328987,1775183443944,-168.0,0.00015442,2]
[419328988,1775183443955,-500.0,0.00015452,2]
[419328989,1775183443966,-500.0,0.00015452,2]
[419328990,1775183443977,-500.0,0.00015452,2]
[419328991,1775183443988,-197.88472043,0.00015452,2]
[419328992,1775183443998,-997.85949862,0.00015457,2]
[419328993,1775183444008,-500.20872988,0.00015473,2]
[419328994,1775183444018,-997.85949862,0.00015521,2]
[419328996,1775183444029,-997.85949862,0.00015584,2]
[419328997,1775183444039,-997.85949862,0.00015647,2]
[419328998,1775183444049,-173.3337705,0.0001568,2]
[419328999,1775183444059,-997.85949862,0.0001571,2]
[419329000,1775183444070,-503.67960064,0.0001571,2]
[419329001,1775183444080,-1000.0,0.00015728,2]
[419329002,1775183444091,-5000.0,0.0001573,2]
[419329003,1775183444101,-997.85949862,0.00015774,2]
[419329004,1775183444111,-1217.0,0.00015825,2]
[419329005,1775183444122,-925.0,0.00015825,2]
[419329006,1775183444133,-1046.0,0.00015825,2]
[419329007,1775183444143,-623.743,0.00015825,2]
[419329008,1775183444153,-2470.0,0.00015825,2]
[419329009,1775183444163,-71230.07203132,0.0001583,2]
[419329010,1775183446296,-49552.96787398,0.0001583,2]
[419329011,1775183446387,-8881.58312198,0.0001583,2]
[419329012,1775183446549,-36486.88457272,0.0001583,2]
[419329013,1775183446558,-151.0,0.0001583,2]
[419329014,1775183446567,-151.0,0.0001583,2]
[419329015,1775183446577,-997.85949862,0.00015837,2]
[419329016,1775183446586,-153.0,0.0001586,5]
[419329017,1775183446596,-1028.13689088,0.00015864,2]
[419329019,1775183446605,-500.0,0.00015871,2]
[419329020,1775183446614,-500.0,0.00015872,2]
[419329022,1775183446622,-500.79866655,0.00015873,2]
[419329024,1775183446631,-397.19170549,0.00015873,2]
[419329026,1775183446641,-502.39392439,0.00015873,2]
[419329028,1775183446649,-239.14,0.00015895,2]
[419329030,1775183446659,-1000.0,0.00015895,2]
[419329032,1775183446668,-1600.0,0.000159,2]
[419329034,1775183446678,-2000.0,0.000159,2]
[419329036,1775183446688,-4594.73927756,0.000159,2]
[419329038,1775183446697,-997.85949862,0.000159,2]
[419329040,1775183446705,-1133.81916623,0.000159,2]
[419329042,1775183446714,-2000.0,0.00015901,2]
[419329044,1775183446723,-591.92174838,0.00015961,2]
[419329046,1775183446731,-500.0,0.00015973,2]
[419329048,1775183446740,-262.51968471,0.00015973,2]
[419329050,1775183446750,-359.0,0.00015974,2]
[419329052,1775183446759,-200.37159712,0.00015984,2]
[419329054,1775183446768,-185.06727832,0.00015999,2]
[419329056,1775183446777,-500.0,0.00015999,2]
[419329058,1775183446786,-500.0,0.00015999,2]
[419329060,1775183446795,-219.42209003,0.00015999,2]
[419329062,1775183446804,-261.57413794,0.00015999,2]
[419329064,1775183446813,-500.0,0.00015999,2]
[419329066,1775183446822,-500.0,0.00015999,2]
[419329068,1775183446831,-500.0,0.00015999,2]
[419329070,1775183446840,-212.52941047,0.00015999,2]
[419329072,1775183446849,-500.0,0.00015999,2]
[419329074,1775183446859,-500.0,0.00015999,2]
[419329076,1775183446868,-500.0,0.00015999,2]
[419329078,1775183446877,-500.0,0.00015999,2]
[419329080,1775183446886,-179.86797443,0.00015999,2]
[419329082,1775183446895,-69.25603036,0.00016,5]
[419329984,1775184381751,-300.0,0.00013822,2]
[419329985,1775184381774,-300.0,0.00013822,2]
[419329986,1775184381796,-400.0,0.00013822,2]
[419329987,1775184388203,-800.0,0.00013822,2]
[419329988,1775184388225,-200.0,0.00013822,2]
[419329989,1775184391319,-504.0,0.00013111,2]
[419329990,1775184391341,-100.0,0.00013822,2]
[419329991,1775184391369,-396.0,0.00013823,2]
[419329992,1775184393241,-1000.0,0.00013823,2]
[419329993,1775184394675,-1000.0,0.00013823,2]
[419329994,1775184395863,-1000.0,0.00013823,2]
[419329995,1775184397111,-1000.0,0.00013823,2]
[419329996,1775184398599,-1000.0,0.00013823,2]
[419329997,1775184400414,-1000.0,0.00013823,2]
[419330003,1775184632248,-1200.0,0.00013822,2]
[419330004,1775184632258,-1654.920635,0.00013823,2]
[419330005,1775184632333,-746.25857799,0.00013823,2]
[419330006,1775184632402,-700.36150344,0.00013823,2]
[419330007,1775184632415,-81358.74638505,0.00013823,2]
[419330008,1775184632454,-405.21062676,0.00013823,2]
[419330012,1775184632586,-1125.14410807,0.00013823,2]
[419330015,1775184632646,-185887.79034191,0.00013823,2]
[419330017,1775184632658,-3325.47062798,0.00013823,2]
[419330020,1775184632670,-10010.97165704,0.00013823,2]
[419330022,1775184632683,-10422.38184293,0.00013823,2]
[419330035,1775184638478,-1559.99999991,0.00013823,2]
[419330036,1775184638547,-707.04755,0.00013823,2]
[419330037,1775184638585,-2432.65317207,0.00013823,2]
[419330038,1775184638595,-1609.77302833,0.00013823,2]
[419330039,1775184638607,-2337.87899315,0.00013823,2]
[419330194,1775184641676,-867.29203306,0.00013823,2]
[419330195,1775184641904,-256974.54321731,0.00013823,2]
[419330196,1775184641914,-345.75903701,0.00013823,2]
[419330197,1775184641923,-112700.0442,0.00013923,2]
[419330198,1775184641932,-151.0,0.00013925,2]
[419330199,1775184641942,-151.0,0.00013925,2]
[419330200,1775184641952,-151.0,0.00013925,2]
[419330201,1775184641961,-151.0,0.00013925,2]
[419330202,1775184641970,-151.0,0.00013925,2]
[419330203,1775184641979,-151.0,0.00013925,2]
[419330204,1775184641989,-151.0,0.00013925,2]
[419330205,1775184641998,-151.0,0.00013925,2]
[419330206,1775184642008,-151.0,0.00013925,2]
[419330207,1775184642017,-151.0,0.00013925,2]
[419330208,1775184642027,-151.0,0.00013925,2]
[419330209,1775184642036,-151.0,0.00013925,2]
[419330210,1775184642045,-151.0,0.00013925,2]
[419330211,1775184642054,-151.0,0.00013925,2]
[419330212,1775184642065,-151.0,0.00013925,2]
[419330213,1775184642075,-151.0,0.00013925,2]
[419330214,1775184642084,-151.0,0.00013925,2]
[419330215,1775184642093,-151.0,0.00013925,2]
[419330216,1775184642104,-151.0,0.00013925,2]
[419330217,1775184642114,-153.40971064,0.00013925,2]
[419330218,1775184642124,-500.0,0.00013932,2]
[419330219,1775184642133,-540.46199172,0.00013932,2]
[419330220,1775184642143,-561.88584574,0.00013932,2]
[419330221,1775184642152,-345.75903693,0.00014054,2]
[419330222,1775184642160,-157.0,0.000141,2]
[419330223,1775184642170,-157.0,0.000141,2]
[419330224,1775184642179,-345.75903693,0.00014285,2]
[419330225,1775184642188,-150.0,0.000144,2]
[419330226,1775184642197,-153.27216264,0.000144,2]
[419330227,1775184642206,-150.0,0.000144,2]
[419330228,1775184642215,-150.0,0.000144,2]
[419330229,1775184642224,-151.42610217,0.000144,2]
[419330230,1775184642233,-150.93612555,0.000144,2]
[419330231,1775184642242,-150.0,0.000144,2]
[419330232,1775184642251,-150.36315242,0.000144,2]
[419330233,1775184642260,-150.0,0.000144,2]
[419330234,1775184642270,-150.7843903,0.000144,2]
[419330235,1775184642279,-151.39344706,0.000144,2]
[419330236,1775184642288,-150.0,0.000144,2]
[419330237,1775184642297,-345.75903693,0.00014515,2]
[419330238,1775184642306,-200.0,0.00014524,2]
[419330239,1775184642315,-158.0,0.000147,2]
[419330240,1775184642325,-345.75903693,0.00014746,2]
[419330241,1775184642336,-1600.0,0.00014754,2]
[419330242,1775184642345,-189.94,0.00014929,2]
[419330243,1775184642355,-150.0,0.00014962,2]
[419330244,1775184642365,-345.75903693,0.00014977,2]
[419330245,1775184642374,-250.0,0.00015204,2]
[419330246,1775184642383,-345.75903693,0.00015208,2]
[419330247,1775184642393,-500.0,0.00015326,7]
[419330248,1775184642402,-500.0,0.00015326,7]
[419330249,1775184642411,-500.0,0.00015326,7]
[419330250,1775184642420,-500.0,0.00015326,7]
[419330251,1775184642429,-500.0,0.00015326,7]
[419330252,1775184642438,-500.0,0.00015326,7]
[419330253,1775184642447,-500.0,0.00015326,7]
[419330254,1775184642457,-500.0,0.00015326,7]
[419330255,1775184642466,-500.0,0.00015326,7]
[419330256,1775184642475,-500.0,0.00015326,7]
[419330257,1775184642484,-500.0,0.00015326,7]
[419330258,1775184642494,-150.0,0.00015326,7]
[419330259,1775184642504,-500.0,0.00015326,7]
[419330260,1775184642514,-152.49426171,0.00015326,7]
[419330261,1775184642523,-500.0,0.00015326,7]
[419330262,1775184642532,-370.93832069,0.00015326,7]
[419330263,1775184642542,-500.0,0.00015326,7]
[419330264,1775184642551,-500.0,0.00015326,7]
[419330265,1775184642560,-500.0,0.00015326,7]
[419330266,1775184642570,-521.01152683,0.00015326,7]
[419330267,1775184642579,-150.0,0.00015326,2]
[419330268,1775184642588,-500.0,0.00015326,7]